Cogmind - Beta 14 @@@ ROGUE MODE // 2024.11.16 @ 15:30:05 Player: Disco Result: Destroyed by Y-45 Defender with Beam Rifle Performance ------------- Evolutions (2) 1000 Regions Visited (5) 1000 Robots Destroyed (36) 180 Value Destroyed (791) 791 Prototype IDs (8) 160 Alien Tech Used (0) 0 Bonus (0) 0 TOTAL SCORE: 3131 Bonus ------- None Cogmind --------- Core Integrity 0/550 Matter 159/300 Energy 160/160 System Corruption 0% Temperature Cool (9) Movement Walking (190) Ox1 Location -8/Materials Parts ------- > --- POWER (1) -------- Light Nuclear Core > --- PROPULSION (4) --- Aluminum Leg > --- UTILITY (4) ------ Small Storage Unit Improved Signal Interpreter > --- WEAPON (2) ------- Beamcaster Light Assault Rifle > --- INVENTORY (8) ---- Light Treads Flight Unit Grenade Launcher Peak State ------------ > --- POWER ------------ Light Ion Engine > --- PROPULSION ------- Flight Unit Flight Unit Flight Unit Flight Unit > --- UTILITY ---------- Small Storage Unit Sensor Array Experimental Sensor Array Improved Signal Interpreter > --- WEAPON ----------- Field Laser Beamcaster > --- INVENTORY -------- Light Ion Engine Flight Unit Flight Unit Precision Beam Rifle Light Assault Rifle Grenade Launcher [Rating: 27] Favorites ----------- Power Light Ion Engine Engine Light Ion Engine Power Core Light Nuclear Core Propulsion Flight Unit Treads Light Treads Leg Aluminum Leg Wheel Wheel Flight Unit Flight Unit Utility Small Storage Unit Device Sensor Array Storage Small Storage Unit Processor Improved Signal Interpreter Weapon Small Laser Energy Gun Small Laser Ballistic Gun Light Assault Rifle Launcher Grenade Launcher Build | -11 -10 -10 -10 -9 -8 ------- Run | Yrd Mat Min Exi Min Mat Slots Evolved 4 | . . . . . 4 Power . | . . . . . . Propulsion 2 | . . . . . 2 Utility 2 | . . . . . 2 Weapon . | . . . . . . Parts Attached 40 | 6 6 5 . 2 21 Power 8 | 1 1 2 . . 4 Engine 5 | 1 1 2 . . 1 Core 3 | . . . . . 3 Reactor . | . . . . . . Propulsion 13 | 2 2 1 . 2 6 Treads 2 | 2 . . . . . Leg 1 | . . . . . 1 Wheel 1 | . . . . . 1 Hover . | . . . . . . Flight 9 | . 2 1 . 2 4 Utility 9 | 1 3 . . . 5 Device 4 | . 2 . . . 2 Storage 2 | 1 . . . . 1 Processor 3 | . 1 . . . 2 Hackware . | . . . . . . Protection . | . . . . . . Artifact . | . . . . . . Weapon 10 | 2 . 2 . . 6 Energy Gun 7 | 2 . 1 . . 4 Energy Cannon . | . . . . . . Ballistic Gun 2 | . . 1 . . 1 Ballistic Cannon . | . . . . . . Launcher 1 | . . . . . 1 Special Weapon . | . . . . . . Impact Weapon . | . . . . . . Slashing Weapon . | . . . . . . Piercing Weapon . | . . . . . . Special Melee Weapon . | . . . . . . Unidentified Prototypes 1 | . . . . . 1 Parts Lost 19 | . . 4 . 1 14 Power 5 | . . 2 . . 3 Propulsion 9 | . . 1 . 1 7 Utility 2 | . . . . . 2 Weapon 3 | . . 1 . . 2 Highest Loss Streak 9 | . . 2 . 1 9 To Critical Strikes . | . . . . . . Average Slot Usage (%) 94 | . 93 99 100 99 82 Engine 12 | . 14 13 14 14 6 Treads 5 | . 21 . . . . Flight 21 | . 6 27 28 27 26 Device 10 | . 2 14 14 14 11 Storage 12 | . 14 14 14 14 9 Processor 3 | . 5 . . . 9 Energy Gun 18 | . 28 15 14 14 13 Ballistic Gun 7 | . . 12 14 14 3 Peak Build Rating 27 | 6 8 8 8 8 27 Average Rating 9 | 4 7 7 8 7 18 On Entrance 6 | . 6 7 8 8 8 Naked Turns . | . . . . . . Heaviest Build 18 | 13 14 12 11 11 18 Greatest Support 40 | 40 40 8 8 8 16 Greatest Overweight (x) 4 | . 1 1 1 2 4 Average Overweight (x) . | . . 1 1 1 . Largest Inventory Capacity 8 | 8 8 8 8 8 8 Average Capacity 7 | 6 8 8 8 8 7 Most Carried 8 | 5 8 8 8 8 8 Average Carried 6 | 2 5 7 8 7 4 Final Capacity 8 | 8 8 8 8 8 8 Final Carried 8 | 2 7 8 8 8 3 Class Distribution -------------------- 52% | Scavenger-Mutant 37% | Mutant 10% | Scavenger-Sprinter Dominant Class ---------------- Mutant | -10/Materials Scavenger-Mutant | -10/Mines Scavenger-Mutant | -10/Exiles Scavenger-Mutant | -9/Mines Scavenger-Sprinter | -8/Materials Resources | -11 -10 -10 -10 -9 -8 ----------- Run | Yrd Mat Min Exi Min Mat Matter Collected 501 | 207 103 73 . 26 92 Remotely . | . . . . . . Salvage Created 921 | . 214 255 . 66 386 Parts 71 | . 22 18 . 6 25 Haulers Intercepted . | . . . . . . Recyclers Shooed . | . . . . . . Parts Field Recycled . | . . . . . . Retrieved Matter . | . . . . . . Parts Self-Destructed . | . . . . . . Prevented . | . . . . . . Kills | -11 -10 -10 -10 -9 -8 ------- Run | Yrd Mat Min Exi Min Mat Combat Hostiles Destroyed 30 | . 7 9 . 4 10 Guns 24 | . 7 9 . 4 4 AOE 6 | . . . . . 6 Classes Destroyed 7 | . 4 . . . 3 Builder 1 | . . . . . 1 Recycler 2 | . 1 . . . 1 Watcher 3 | . 2 . . . 1 Swarmer 18 | . 6 5 . 4 3 Grunt 8 | . 1 4 . . 3 Sentry 2 | . . . . . 2 Hunter 2 | . . . . . 2 Best Kill Streak 7 | . 4 2 . 4 7 Combat Bots Only 6 | . 4 2 . 4 6 Max Kills in Single Turn 3 | . 1 2 . 1 3 Gunslinging 1 | . . 1 . . . Exploded 3 | . . . . . 3 Melee . | . . . . . . Uniques/NPCs Destroyed . | . . . . . . Combat | -11 -10 -10 -10 -9 -8 -------- Run | Yrd Mat Min Exi Min Mat Hostile Shots Fired 249 | . 64 51 . 15 119 Missed 67 | . 18 16 . 5 28 Damage Taken 2209 | . 376 393 . 82 1358 Core 719 | . 61 70 . 29 559 Absorbed by Shields . | . . . . . . Core Remaining (%) 68 | 100 . . . 36 . Volleys Fired 85 | . 25 27 . 6 27 Largest 2 | . 2 2 . 2 2 Hottest 138 | . 90 90 . 60 138 Shots Fired 167 | . 50 54 . 12 51 Gun 163 | . 50 54 . 12 47 Cannon . | . . . . . . Launcher 4 | . . . . . 4 Special . | . . . . . . Kinetic 38 | . . 18 . 6 14 Thermal 125 | . 50 36 . 6 33 Explosive 4 | . . . . . 4 Electromagnetic . | . . . . . . Robot Hit Streak 11 | . 5 7 . 7 11 Robot Miss Streak 7 | . 5 7 . 2 3 Penetration Max . | . . . . . . Secondary Targets 4 | . 1 1 . . 2 Max Gunslinging Chain 1 | . 1 1 . . 1 Shots Hit Robots 98 | . 20 36 . 7 35 Core Hits 59 | . 11 17 . 5 26 Critical Kills . | . . . . . . Critical Parts Destroyed . | . . . . . . Critical Strikes 1 | . 1 . . . . Burn 1 | . 1 . . . . Melee Attacks . | . . . . . . Impact . | . . . . . . Slashing . | . . . . . . Piercing . | . . . . . . Sneak Attacks . | . . . . . . Combat Hostiles . | . . . . . . Follow-up Attacks . | . . . . . . Damage Inflicted 1586 | . 251 361 . 65 909 Guns 1126 | . 249 361 . 65 451 Cannons . | . . . . . . Explosions 458 | . . . . . 458 Melee . | . . . . . . Ramming 2 | . 2 . . . . Kinetic 195 | . . 106 . 21 68 Thermal 931 | . 249 255 . 44 383 Explosive 458 | . . . . . 458 Electromagnetic . | . . . . . . Impact . | . . . . . . Slashing . | . . . . . . Piercing . | . . . . . . Highest Corruption . | . . . . . . Average Corruption . | . . . . . . Corruption Purged . | . . . . . . Corruption Blocked . | . . . . . . Overload Shots . | . . . . . . Overflow Damage . | . . . . . . Projectiles . | . . . . . . Explosions . | . . . . . . Melee . | . . . . . . Knockbacks . | . . . . . . Impact . | . . . . . . Kinetic . | . . . . . . Secondary . | . . . . . . Self-Inflicted Damage . | . . . . . . Shots . | . . . . . . Rammed . | . . . . . . Targets Rammed 1 | . 1 . . . . Kicked . | . . . . . . Crushed 1 | . 1 . . . . Highest Temperature 514 | . 252 260 . 50 514 Average Temperature 103 | . 92 93 . 30 145 Received Heat Transfer 663 | . 24 144 . . 495 Effects 3 | . . . . . 3 Matter Decay 1 | . . . . . 1 Short Circuit 1 | . . . . . 1 Damage (minor) 1 | . . . . . 1 Siege Activations . | . . . . . . Robots Corrupted . | . . . . . . Combat Hostiles . | . . . . . . Parts Fried . | . . . . . . Impact Corruptions . | . . . . . . Robots Melted . | . . . . . . Combat Hostiles . | . . . . . . Parts Melted 2 | . . . . . 2 Heat Transferred 2246 | . 743 611 . 100 792 Parts Sabotaged . | . . . . . . Parts Stolen . | . . . . . . Parts Stripped . | . . . . . . Power Chain Reactions . | . . . . . . Alert | -11 -10 -10 -10 -9 -8 ------- Run | Yrd Mat Min Exi Min Mat Peak Influence 333 | . 142 249 . 90 333 Initial 55 | . . 55 . . 35 Average 104 | . 51 101 . 86 202 Maximum Alert Level 1 | . . 1 . . 1 Low Security (%) 86 | 100 100 96 . 100 44 Level 1 13 | . . 3 . . 55 Level 2 . | . . . . . . Level 3 . | . . . . . . Level 4 . | . . . . . . Level 5 . | . . . . . . High Security . | . . . . . . Max Security . | . . . . . . Squads Dispatched 4 | . 1 . . 1 2 Investigation 4 | . 1 . . 1 2 Extermination . | . . . . . . Reinforcement . | . . . . . . Assault . | . . . . . . Garrison . | . . . . . . Intercept . | . . . . . . Searches Triggered . | . . . . . . Construction Impeded . | . . . . . . Haulers Reinforced . | . . . . . . Active Scanning Responses . | . . . . . . Cargo Convoy Interrupts . | . . . . . . Stealth | -11 -10 -10 -10 -9 -8 --------- Run | Yrd Mat Min Exi Min Mat Distress Signals . | . . . . . . Communications Jammed . | . . . . . . Distress Signals . | . . . . . . Times Spotted 50 | . 13 12 . 4 21 Peak Tracking Total 10 | . 6 3 . 4 10 Tactical Retreats 5 | . 1 1 . . 3 Traps | -11 -10 -10 -10 -9 -8 ------- Run | Yrd Mat Min Exi Min Mat Traps Triggered 1 | . . . . . 1 Indirectly . | . . . . . . Trap Hack Attempts . | . . . . . . Triggered . | . . . . . . Disarmed . | . . . . . . Reprogrammed . | . . . . . . Reused . | . . . . . . Traps Extracted . | . . . . . . Installed . | . . . . . . Triggered . | . . . . . . Machines | -11 -10 -10 -10 -9 -8 ---------- Run | Yrd Mat Min Exi Min Mat Machines Disabled 1 | . 1 . . . . Max in Single Turn 1 | . 1 . . . . Machines Repaired . | . . . . . . Machines Dismantled . | . . . . . . Machines Sabotaged . | . . . . . . Overloaded Fab Kills . | . . . . . . Hacking | -11 -10 -10 -10 -9 -8 --------- Run | Yrd Mat Min Exi Min Mat Machines Accessed 13 | . 3 1 1 1 7 Terminals 10 | . 3 1 . . 6 Fabricators . | . . . . . . Repair Stations . | . . . . . . Recycling Units 1 | . . . . . 1 Scanalyzers . | . . . . . . Garrison Access . | . . . . . . Total Hacks 38 | . 10 2 6 1 19 Successful 25 | . 6 2 6 1 10 Failed 13 | . 4 . . . 9 Catastrophic . | . . . . . . Database Lockouts . | . . . . . . Manual 2 | . . . 2 . . Terminals 30 | . 10 2 . . 18 Fabricators . | . . . . . . Repair Stations . | . . . . . . Recycling Units 1 | . . . . . 1 Scanalyzers . | . . . . . . Garrison Access . | . . . . . . Terminal Hacks 24 | . 6 2 6 1 9 Record 6 | . . . 6 . . Prototype ID Bank 4 | . 2 . . . 2 Open Door 1 | . . . . 1 . Emergency Access Points 3 | . 1 . . . 2 Alert Level 1 | . 1 . . . . Locate Traps 4 | . 1 . . . 3 Dispatch Records 4 | . 1 1 . . 2 Zone Layout 1 | . . 1 . . . Fabricator Hacks . | . . . . . . Repair Station Hacks . | . . . . . . Recycling Unit Hacks 1 | . . . . . 1 Report Inventory 1 | . . . . . 1 Scanalyzer . | . . . . . . Garrison Access Hacks . | . . . . . . Unauthorized Hacks . | . . . . . . Terminals . | . . . . . . Fabricators . | . . . . . . Repair Stations . | . . . . . . Recycling Units . | . . . . . . Scanalyzers . | . . . . . . Garrison Access . | . . . . . . Data Cores Recovered 1 | . . . . . 1 Used 1 | . . . . . 1 Hacking Detections 8 | . 2 1 . . 5 Full Trace Events 2 | . 1 . . . 1 Feedback Events . | . . . . . . Feedback Blocked . | . . . . . . Robot Schematics Acquired . | . . . . . . Robots Built . | . . . . . . Authchips . | . . . . . . Time . | . . . . . . Total Robot Build Rating . | . . . . . . Part Schematics Acquired . | . . . . . . Parts Built . | . . . . . . Authchips . | . . . . . . Time . | . . . . . . Total Part Build Rating . | . . . . . . Parts Repaired . | . . . . . . Time . | . . . . . . Parts Recycled . | . . . . . . Recycled Matter . | . . . . . . Retrieved Matter . | . . . . . . Retrieved Components . | . . . . . . Parts Scanalyzed . | . . . . . . Part Schematics Acquired . | . . . . . . Parts Damaged . | . . . . . . Bothacking | -11 -10 -10 -10 -9 -8 ------------ Run | Yrd Mat Min Exi Min Mat Used RIF Installer . | . . . . . . Robots Hacked . | . . . . . . Non-combat . | . . . . . . Combat . | . . . . . . Robot Hacks Applied . | . . . . . . Relay Couplers Released . | . . . . . . Fabnet Peak Effective % . | . . . . . . Robots Rewired . | . . . . . . Allies Hacked . | . . . . . . Hacks Repelled . | . . . . . . Allies | -11 -10 -10 -10 -9 -8 -------- Run | Yrd Mat Min Exi Min Mat Total Allies . | . . . . . . Largest Group . | . . . . . . Highest-Rated Group . | . . . . . . Highest-Rated Ally . | . . . . . . Total Orders . | . . . . . . Ally Attacks . | . . . . . . Total Damage . | . . . . . . Kills . | . . . . . . Allies Corrupted . | . . . . . . Allies Melted . | . . . . . . Intel | -11 -10 -10 -10 -9 -8 ------- Run | Yrd Mat Min Exi Min Mat Robot Analysis Total . | . . . . . . Derelict Logs Recovered 1 | . . 1 . . . Drone Launches . | . . . . . . Drone Recoveries . | . . . . . . Exploration | -11 -10 -10 -10 -9 -8 ------------- Run | Yrd Mat Min Exi Min Mat Turns Passed 2295 | 69 614 721 239 182 470 Spaces Moved 1882 | 46 345 524 198 135 634 Core 32 | 15 . . . . 17 Treads 266 | 31 235 . . . . Legs 1 | . . . . . 1 Wheels 6 | . . . . . 6 Hover . | . . . . . . Flight 1577 | . 110 524 198 135 610 Fastest Speed 31 | 50 117 117 117 117 31 Average Speed 100 | 124 146 117 117 117 51 Slowest Speed 280 | 160 160 117 117 200 280 Overloaded Moves . | . . . . . . Propulsion Burnouts . | . . . . . . Robots Hopped 2 | . . . . . 2 Cave-ins Triggered . | . . . . . . Exploration Rate (%) 47 | 4 65 78 58 25 52 Regions Visited 5 Branch Regions 3 Pre-discovered Areas . | . . . . . . Known Exits Taken . | . . . . . . Unknown Exits Taken 5 | 1 1 1 1 1 . Scrap Searched 1 | . . 1 . . . Spaces Dug . | . . . . . . Terrain Destroyed 27 | . . . . . 27 Melee . | . . . . . . Projectile 1 | . . . . . 1 AOE 26 | . . . . . 26 Terrain Rammed . | . . . . . . Walls Destroyed . | . . . . . . Machines Disabled . | . . . . . . Actions | -11 -10 -10 -10 -9 -8 --------- Run | Yrd Mat Min Exi Min Mat Total 2129 | 57 405 582 205 148 732 Wait 67 | . 6 20 8 . 33 Move 1873 | 45 344 523 197 134 630 Hop 2 | . . . . . 2 Pick Up 43 | 6 15 6 . 3 13 Fast Attach 3 | 2 . . . 1 . Attach 30 | 4 1 5 . 1 19 Detach 2 | . . . . . 2 Swap 7 | . 5 . . . 2 Drop 16 | . 8 1 . 3 4 Fire 85 | . 25 27 . 6 27 Melee . | . . . . . . Ram . | . . . . . . Kick . | . . . . . . Crush 1 | . 1 . . . . Escape Stasis . | . . . . . . Rewire . | . . . . . . Trap . | . . . . . . Miscellaneous . | . . . . . . Route ------- -11/Scrapyard -10/Materials -10/Mines -10/Exiles -9/Mines -8/Materials (discovered 1 exit: [*Fac]) History --------- Turn | Location | Event 13 | -11/Scrapyard | Discovered new exit (range 14) 70 | -11/Scrapyard | Entered Materials 318 | -10/Materials | Build established: Mutant 594 | -10/Materials | Discovered new exit (range 17) 684 | -10/Materials | Entered Mines 717 | -10/Mines | Learned Materials garrison access intel 850 | -10/Mines | Found a damaged Exp. Sensor Array with a note attached 853 | -10/Mines | Found Prototype Device 1063 | -10/Mines | Build established: Scavenger-Mutant 1257 | -10/Mines | Core integrity fell below 50% 1353 | -10/Mines | A weapon hastily lodged in a ceiling crevice suddenly fell to the ground 1401 | -10/Mines | Deemed a non-threat by the Exiles lab entrance 1401 | -10/Mines | Discovered new exit (range 5) 1405 | -10/Mines | Entered Exiles 1405 | -10/Exiles | Found Exiles lab destroyed 1632 | -10/Exiles | Discovered new exit (range 11) 1644 | -10/Exiles | Entered Mines 1680 | -9/Mines | Discovered new exit (range 14) 1723 | -9/Mines | Met a Derelict shopkeep closing up shop 1766 | -9/Mines | Assembled infested the area 1771 | -9/Mines | Assisted by a Guerilla fighting off Assembled 1826 | -9/Mines | Entered Materials 1826 | -8/Materials | Evolved 4 slots: Propulsion x2, Utility x2 1827 | -8/Materials | Loaded intel: 1 garrison access location 1829 | -8/Materials | Identified Exp. Sensor Array 2200 | -8/Materials | Discovered new exit (range 15) 2214 | -8/Materials | Core integrity fell below 50% 2256 | -8/Materials | Core integrity fell below 20% 2296 | -8/Materials | Destroyed by Y-45 Defender with Beam Rifle Last Messages --------------- 02275_ K-01 Serf collects debris. 02276_ Acquired Lgt. Treads. 02277_ U-05 Engineer lays Concrete. 02278_ Critical hit (Burn: +37). 02278_ Prc. Beam Rifle destroyed. 02278_ K-01 Serf collects debris. 02280_ U-05 Engineer lays Concrete. 02281_ Acquired Lgt. Nuclear Core. 02282_ K-01 Serf collects debris. 02283_ U-05 Engineer builds a Wall. 02287_ U-05 Engineer lays Concrete. 02287_ K-01 Serf collects debris. 02288_ The unstable cave ceiling collapses. 02289_ U-05 Engineer builds a Wall. 02290_ Acquired Aluminum Leg. 02290_ K-01 Serf collects debris. 02291_ U-05 Engineer lays Concrete. 02294_ K-01 Serf collects debris. 02295_ U-05 Engineer builds a Door. 02295_ U-05 Engineer lays Concrete. Map ----- +----------------------------------------------------+ | ##??????????????????? ###################+##### | | ????????????????????????????????????????? ??# | | ??????????????????????????????????????? """ """ # | | ??????????????????????????????????????# "G """ # | | ??????????????????????????????????????# """ """ # | | ??????????????????????????????????????# # | | ??????????????????????????????????????# ]] # | | ??????????????????????????????????????? ]] # | | ??????????????????????????????????????? ?# | | ??????????????????????????????????############??# | | ??????????????????????????????????# #???# | | ??????????????????????????????????# """ """ #???# | | ??????????????????????????????????# """ """ ##### | | ??????????????????????????????????# """ """ + | | ??????????????????????????????????# ##### | | ??????????????????????????????????# #???# | | ??????????????????????????????????# =#???# | | ??????????????????????????????????# #???# | | ????????????????????????#####?#########+######### | | ????????????????????????# #?# | | ????????????????????????# = #?# ######### | | ???????????????????????## ### #???????? | | ???????????????????????# ! # # ########???????? | | ???????????????????????# ## #??????????????? | | ???????????????????????# Y ## #??????????????? | | ????????????????# = #@g%[## ##?????????????? | | ????????????????###+### =+### !"%#?????????????? | | ???????????? !% [ "#?????????????? | | ???????????? ! u + ????????????? | | ???????????? ! # ???????????? | | ????????????? ####### # # # ??????????? | | ??????????????????????# ## ##?###?????????? | | ??????????????????????#* ## #??????????????? | | ??????????????????????# """ ## #??????????????? | | ??????????????????????# R" ## +??????????????? | | ??????????????????????# """ ## #??????????????? | | ??????????????????????# ? ## < #??????????????? | | ??????????????????????###???##? #??????????????? | | ???????????????????????????????####??????????????? | | ?????????????????????????????????????????????????? | | ?????????????????????????????????????????????????? | | ?????????????????????????????????????????????????? | | ?????????????????????????????????????????????????? | | ?????????????????????????????????????????????????? | | | | | | | | | | | | | +----------------------------------------------------+ Best States ------------- Heat Dissipation 31 Energy Generation 14 Energy Capacity 250 Matter Stores 300 Matter Capacity 300 Sight Range 18 Robot Scan Range 20 Terrain Scan Range 14 Terrain Scan Density 10 Evasion (%) 63 Recoil Reduction 2 Item Schematics ----------------- None Robot Schematics ------------------ None Fabricated ------------ Nothing Alien Tech Used ----------------- None Achievements -------------- Dynamic Key Challenges ------------ None Game ------ Seed CoolingWarlordMicrothruster Manual? 0 Play Time 00:25:22 Cumulative 10.4 hours Start 2024.11.16 @ 15:04:28 End 2024.11.16 @ 15:30:05 Sessions 1 Manual Loads 0 Difficulty Rogue Special Mode None Game No. 19 Rogue 16 Adventurer 3 Explorer 0 Win Type - Total 0 Types 0/0/0/0/0/0/0/0/0 Lore% 8 Gallery% 17 Achievement% 15 Wizard Run 0 Options --------- Layout 1 ASCII 0 Keyboard 0 Movement Mouse Keybinds 0 Fullscreen 1 Font 24/Smallcaps Map View 50x35 Zoom Use 0% Tactical HUD 1 Map Filters NONE Filters NONE Steam 1 RUN: 5cd56352-b8cc-4211-ae4c-f5d4c63b5803